[Event "Championnat d'Europe de Blitz"]
[Date "2024.12.09"]
[White "Toncic, Danilo"]
[Black "Schneider, Ilja"]
[WhiteElo "1972"]
[BlackElo "2414"]
[Round "1.52"]
[Result "0-1"]
[TimeControl "180+2"]

1. b3 {[%clk 00:03:04]} d5 {[%emt 00:00:03] [%clk 00:03:03]} 2. Bb2 {[%clk
00:03:05]} Bf5 {[%clk 00:03:04]} 3. Nf3 {[%emt 00:00:03] [%clk 00:03:03]} Nf6
{[%emt 00:00:05] [%clk 00:03:02]} 4. d3 {[%clk 00:03:04]} c6 {[%emt 00:00:05]
[%clk 00:02:59]} 5. Nbd2 {[%emt 00:00:02] [%clk 00:03:04]} Nbd7 {[%emt 00:00:03]
[%clk 00:02:58]} 6. g3 {[%emt 00:00:01] [%clk 00:03:05]} e6 {[%emt 00:00:05]
[%clk 00:02:56]} 7. Bg2 {[%clk 00:03:05]} h6 {[%emt 00:00:01] [%clk 00:02:56]}
8. O-O {[%emt 00:00:02] [%clk 00:03:06]} Bd6 {[%emt 00:00:21] [%clk 00:02:38]}
9. Qe1 {[%emt 00:00:19] [%clk 00:02:47]} Bh7 {[%emt 00:00:31] [%clk 00:02:10]}
10. e4 {[%emt 00:00:04] [%clk 00:02:45]} dxe4 {[%emt 00:00:19] [%clk 00:01:53]}
11. Nxe4 {[%emt 00:00:37] [%clk 00:02:10]} Be7 {[%emt 00:00:06] [%clk 00:01:49]}
12. Rd1 {[%emt 00:00:04] [%clk 00:02:08]} O-O {[%emt 00:00:02] [%clk 00:01:49]}
13. Ne5 {[%emt 00:00:06] [%clk 00:02:04]} Qb6 {[%emt 00:00:32] [%clk 00:01:18]}
14. Nc4 {[%emt 00:00:12] [%clk 00:01:55]} Qc7 {[%emt 00:00:02] [%clk 00:01:18]}
15. a4 {[%emt 00:00:07] [%clk 00:01:50]} Rfd8 {[%emt 00:00:04] [%clk 00:01:16]}
16. Qe2 {[%emt 00:00:06] [%clk 00:01:46]} Nd5 {[%emt 00:00:15] [%clk 00:01:03]}
17. Kh1 {[%emt 00:00:12] [%clk 00:01:37]} N7f6 {[%emt 00:00:02] [%clk 00:01:02]}
18. Ncd2 {[%emt 00:00:08] [%clk 00:01:31]} Qa5 {[%emt 00:00:10] [%clk 00:00:54]}
19. Nc4 {[%emt 00:00:11] [%clk 00:01:22]} Qc7 {[%emt 00:00:01] [%clk 00:00:55]}
20. Ncd2 {[%emt 00:00:01] [%clk 00:01:23]} Rd7 {[%emt 00:00:09] [%clk 00:00:48]}
21. f4 {[%emt 00:00:18] [%clk 00:01:07]} Bf5 {[%emt 00:00:06] [%clk 00:00:43]}
22. Nc4 {[%emt 00:00:07] [%clk 00:01:03]} Bg4 {[%emt 00:00:04] [%clk 00:00:41]}
23. Bf3 {[%emt 00:00:05] [%clk 00:01:00]} Bxf3+ {[%emt 00:00:06]} 24. Rxf3
{[%emt 00:00:07] [%clk 00:00:50]} Rdd8 {[%emt 00:00:06] [%clk 00:00:38]} 25.
Rdf1 {[%emt 00:00:02] [%clk 00:00:50]} a5 {[%emt 00:00:12] [%clk 00:00:28]} 26.
Be5 {[%emt 00:00:05] [%clk 00:00:47]} Qd7 {[%emt 00:00:06] [%clk 00:00:24]} 27.
Kg2 {[%emt 00:00:17] [%clk 00:00:32]} b5 {[%emt 00:00:01] [%clk 00:00:26]} 28.
Nb2 {[%emt 00:00:07] [%clk 00:00:26]} Ba3 {[%emt 00:00:11] [%clk 00:00:17]} 29.
h3 {[%emt 00:00:07] [%clk 00:00:22]} Bxb2 {[%emt 00:00:04] [%clk 00:00:15]} 30.
Bxb2 {[%clk 00:00:23]} Nxe4 {[%emt 00:00:01] [%clk 00:00:16]} 31. Qxe4 {[%emt
00:00:03] [%clk 00:00:21]} Nb4 {[%emt 00:00:04] [%clk 00:00:14]} 32. Qe2 {[%emt
00:00:05] [%clk 00:00:17]} bxa4 {[%emt 00:00:02] [%clk 00:00:15]} 33. bxa4
{[%emt 00:00:01] [%clk 00:00:18]} Rab8 {[%emt 00:00:03] [%clk 00:00:14]} 34. Bc3
{[%emt 00:00:04] [%clk 00:00:16]} Qd5 {[%emt 00:00:03] [%clk 00:00:13]} 35. Kh2
{[%emt 00:00:03] [%clk 00:00:14]} Qa2 {[%clk 00:00:15]} 36. R3f2 {[%emt
00:00:02] [%clk 00:00:14]} Qxa4 {[%emt 00:00:01] [%clk 00:00:15]} 37. f5 {[%emt
00:00:03] [%clk 00:00:14]} e5 {[%emt 00:00:08] [%clk 00:00:10]} 38. Bxe5 {[%emt
00:00:04] [%clk 00:00:11]} Re8 {[%emt 00:00:01] [%clk 00:00:11]} 39. f6 {[%emt
00:00:04] [%clk 00:00:10]} g6 {[%emt 00:00:06] [%clk 00:00:06]} 40. d4 {[%emt
00:00:02] [%clk 00:00:09]} c5 {[%emt 00:00:02] [%clk 00:00:07]} 41. c3 {[%emt
00:00:01] [%clk 00:00:10]} Nd5 {[%clk 00:00:08]} 42. Qf3 {[%emt 00:00:02] [%clk
00:00:09]} Rbd8 {[%emt 00:00:03] [%clk 00:00:08]} 43. h4 {[%emt 00:00:04] [%clk
00:00:07]} cxd4 {[%clk 00:00:09]} 44. cxd4 {[%emt 00:00:01] [%clk 00:00:08]} Qd7
{[%clk 00:00:10]} 45. h5 {[%emt 00:00:02] [%clk 00:00:08]} g5 {[%clk 00:00:12]}
46. Ra2 {[%emt 00:00:04] [%clk 00:00:07]} a4 {[%clk 00:00:13]} 47. Rfa1 {[%clk
00:00:08]} Ra8 {[%clk 00:00:14]} 48. Qd1 {[%emt 00:00:02] [%clk 00:00:08]} Nc3
{[%emt 00:00:02] [%clk 00:00:15]} 49. Qc2 {[%emt 00:00:02] [%clk 00:00:06]} Nxa2
{[%emt 00:00:01] [%clk 00:00:16]} 50. Rxa2 {[%emt 00:00:02] [%clk 00:00:07]} a3
{[%emt 00:00:01] [%clk 00:00:18]} 51. Qf2 {[%emt 00:00:02] [%clk 00:00:06]} Qd5
{[%emt 00:00:03] [%clk 00:00:17]} 52. Kh3 {[%emt 00:00:02] [%clk 00:00:06]} Qe6+
{[%emt 00:00:01] [%clk 00:00:18]} 53. Kh2 {[%clk 00:00:07]} Qg4 {[%clk
00:00:19]} 54. Qd2 {[%emt 00:00:02] [%clk 00:00:07]} Qxh5+ {[%clk 00:00:20]} 55.
Kg2 {[%emt 00:00:01] [%clk 00:00:08]} Qg4 {[%clk 00:00:21]} 56. Ra1 {[%emt
00:00:02] [%clk 00:00:08]} Qe4+ {[%clk 00:00:23]} 57. Kh2 {[%emt 00:00:02] [%clk
00:00:08]} Rac8 {[%emt 00:00:02] [%clk 00:00:23]} 58. Ra2 {[%emt 00:00:01] [%clk
00:00:09]} Qf3 {[%emt 00:00:03] [%clk 00:00:23]} 59. Rxa3 {[%emt 00:00:04] [%clk
00:00:06]} Qxa3 {[%emt 00:00:03] [%clk 00:00:23]} 60. Qe2 {[%clk 00:00:07]} Rb8
{[%emt 00:00:13] [%clk 00:00:12]} 61. Qh5 {[%emt 00:00:02] [%clk 00:00:07]} Qa2+
{[%emt 00:00:02] [%clk 00:00:12]} 62. Kh3 {[%clk 00:00:08]} Qe6+ {[%clk
00:00:14]} 63. g4 {[%emt 00:00:04] [%clk 00:00:07]} Rb3+ {[%clk 00:00:15]} 64.
Bg3 {[%emt 00:00:01] [%clk 00:00:08]} Rxg3+ {[%emt 00:00:01] [%clk 00:00:16]}
65. Kxg3 {[%clk 00:00:09]} Qe3+ {[%clk 00:00:17]} 66. Kh2 {[%clk 00:00:10]} Qf2+
{[%emt 00:00:01] [%clk 00:00:19]} 67. Kh3 {[%emt 00:00:01] [%clk 00:00:11]} Re3#
{[%clk 00:00:00]} 0-1

[Site "Europe Echecs"]

[Event "Championnat d'Europe de Blitz"]
[Date "2024.12.09"]
[White "Marques, Ricardo Taborda Trigo"]
[Black "Costachi, Mihnea"]
[WhiteElo "2001"]
[BlackElo "2464"]
[Round "1.54"]
[Result "0-1"]
[TimeControl "180+2"]

1. d4 {[%clk 00:03:03]} Nf6 {[%clk 00:03:03]} 2. c4 {[%clk 00:03:04]} g6 {[%emt
00:00:02] [%clk 00:03:03]} 3. Nc3 {[%emt 00:00:01] [%clk 00:03:05]} Bg7 {[%emt
00:00:01] [%clk 00:03:04]} 4. e4 {[%emt 00:00:01] [%clk 00:03:06]} d6 {[%clk
00:03:05]} 5. Nf3 {[%emt 00:00:01] [%clk 00:03:07]} O-O {[%emt 00:00:02] [%clk
00:03:06]} 6. Be2 {[%clk 00:03:08]} Na6 {[%emt 00:00:01] [%clk 00:03:07]} 7. Be3
{[%emt 00:00:02] [%clk 00:03:08]} e5 {[%emt 00:00:01] [%clk 00:03:08]} 8. d5
{[%emt 00:00:02] [%clk 00:03:08]} Nc5 {[%emt 00:00:03] [%clk 00:03:07]} 9. Nd2
{[%emt 00:00:02] [%clk 00:03:08]} a5 {[%emt 00:00:02] [%clk 00:03:08]} 10. g4
{[%emt 00:00:01] [%clk 00:03:08]} Nfd7 {[%emt 00:00:09] [%clk 00:03:00]} 11. Qc2
{[%emt 00:00:07] [%clk 00:03:03]} Nb6 {[%emt 00:00:12] [%clk 00:02:50]} 12.
O-O-O {[%emt 00:00:06] [%clk 00:02:59]} c6 {[%emt 00:00:09] [%clk 00:02:43]} 13.
h4 {[%emt 00:00:10] [%clk 00:02:51]} cxd5 {[%emt 00:00:02] [%clk 00:02:44]} 14.
exd5 {[%emt 00:00:05] [%clk 00:02:47]} f5 {[%emt 00:00:03] [%clk 00:02:43]} 15.
Bxc5 {[%emt 00:00:10] [%clk 00:02:39]} dxc5 {[%emt 00:00:02] [%clk 00:02:44]}
16. gxf5 {[%emt 00:00:03] [%clk 00:02:37]} gxf5 {[%emt 00:00:04] [%clk
00:02:42]} 17. Kb1 {[%emt 00:00:05] [%clk 00:02:34]} Kh8 {[%emt 00:00:05] [%clk
00:02:39]} 18. Nf3 {[%emt 00:00:07] [%clk 00:02:29]} a4 {[%emt 00:00:06] [%clk
00:02:36]} 19. Ng5 {[%emt 00:00:05] [%clk 00:02:25]} a3 {[%emt 00:00:08] [%clk
00:02:30]} 20. b3 {[%emt 00:00:01] [%clk 00:02:26]} Qf6 {[%emt 00:00:07] [%clk
00:02:26]} 21. Rc1 {[%emt 00:00:22] [%clk 00:02:05]} e4 {[%emt 00:00:08] [%clk
00:02:20]} 22. Qd2 {[%emt 00:00:02] [%clk 00:02:05]} Bd7 {[%emt 00:00:11] [%clk
00:02:11]} 23. Qf4 {[%emt 00:00:02] [%clk 00:02:05]} Nc8 {[%emt 00:00:23] [%clk
00:01:51]} 24. f3 {[%emt 00:00:07] [%clk 00:01:59]} e3 {[%emt 00:00:30] [%clk
00:01:23]} 25. Qxe3 {[%emt 00:00:03] [%clk 00:01:58]} Nd6 {[%emt 00:00:04] [%clk
00:01:22]} 26. Bd3 {[%emt 00:00:06] [%clk 00:01:53]} b5 {[%emt 00:00:03] [%clk
00:01:21]} 27. Ne6 {[%emt 00:00:11] [%clk 00:01:44]} bxc4 {[%emt 00:00:10] [%clk
00:01:14]} 28. Nxf8 {[%emt 00:00:13] [%clk 00:01:33]} Rxf8 {[%emt 00:00:10]
[%clk 00:01:06]} 29. Bxc4 {[%emt 00:00:13] [%clk 00:01:21]} Nxc4 {[%emt
00:00:08] [%clk 00:01:01]} 30. bxc4 {[%clk 00:01:22]} f4 {[%emt 00:00:05] [%clk
00:00:58]} 31. Qe1 {[%emt 00:00:20] [%clk 00:01:04]} Re8 {[%emt 00:00:09] [%clk
00:00:50]} 32. Qg1 {[%emt 00:00:12] [%clk 00:00:53]} Rb8+ {[%emt 00:00:04] [%clk
00:00:48]} 33. Ka1 {[%emt 00:00:03] [%clk 00:00:53]} Qxc3+ {[%emt 00:00:01]
[%clk 00:00:49]} 0-1

[Site "Europe Echecs"]

[Event "Championnat d'Europe de Blitz"]
[Date "2024.12.09"]
[White "Meyer, Falko"]
[Black "Sarana, Alexey"]
[WhiteElo "2215"]
[BlackElo "2674"]
[Round "2.1"]
[Result "0-1"]
[TimeControl "180+2"]

1. d4 {[%emt 00:00:01] [%clk 00:03:03]} Nf6 {[%emt 00:00:03] [%clk 00:03:03]} 2.
Nc3 {[%clk 00:03:03]} d5 {[%clk 00:03:04]} 3. Bg5 {[%emt 00:00:01] [%clk
00:03:04]} e6 {[%emt 00:00:03] [%clk 00:03:03]} 4. e4 {[%emt 00:00:02] [%clk
00:03:05]} dxe4 {[%emt 00:00:08] [%clk 00:02:57]} 5. Nxe4 {[%emt 00:00:03] [%clk
00:03:05]} Bd7 {[%emt 00:00:04] [%clk 00:02:54]} 6. Nf3 {[%emt 00:00:09] [%clk
00:02:57]} Bc6 {[%emt 00:00:02] [%clk 00:02:54]} 7. Bd3 {[%emt 00:00:06] [%clk
00:02:54]} Nbd7 {[%clk 00:02:55]} 8. c3 {[%emt 00:00:09] [%clk 00:02:47]} Be7
{[%emt 00:00:02] [%clk 00:02:55]} 9. Nxf6+ {[%emt 00:00:04] [%clk 00:02:45]}
Bxf6 {[%emt 00:00:03] [%clk 00:02:54]} 10. Bxf6 {[%emt 00:00:03] [%clk
00:02:44]} Qxf6 {[%emt 00:00:02] [%clk 00:02:54]} 11. Qe2 {[%emt 00:00:07] [%clk
00:02:39]} Bxf3 {[%emt 00:00:05] [%clk 00:02:51]} 12. Qxf3 {[%emt 00:00:02]
[%clk 00:02:39]} Qxf3 {[%emt 00:00:02] [%clk 00:02:51]} 13. gxf3 {[%emt
00:00:01] [%clk 00:02:40]} Nf6 {[%emt 00:00:03] [%clk 00:02:50]} 14. Rg1 {[%emt
00:00:13] [%clk 00:02:29]} g6 {[%emt 00:00:01] [%clk 00:02:51]} 15. O-O-O {[%emt
00:00:17] [%clk 00:02:15]} Ke7 {[%emt 00:00:01] [%clk 00:02:51]} 16. Be4 {[%emt
00:00:10] [%clk 00:02:06]} c6 {[%emt 00:00:02] [%clk 00:02:51]} 17. Kc2 {[%emt
00:00:02] [%clk 00:02:07]} a5 {[%emt 00:00:01] [%clk 00:02:52]} 18. a4 {[%emt
00:00:03] [%clk 00:02:05]} Rhd8 {[%emt 00:00:02] [%clk 00:02:52]} 19. b3 {[%emt
00:00:05] [%clk 00:02:03]} Nh5 {[%emt 00:00:01] [%clk 00:02:52]} 20. Kd2 {[%emt
00:00:48] [%clk 00:01:18]} f5 {[%emt 00:00:07] [%clk 00:02:47]} 21. Bc2 {[%emt
00:00:02] [%clk 00:01:18]} Nf4 {[%emt 00:00:02] [%clk 00:02:46]} 22. Ke3 {[%emt
00:00:10] [%clk 00:01:10]} Nd5+ {[%emt 00:00:01] [%clk 00:02:47]} 23. Kd3 {[%emt
00:00:01] [%clk 00:01:10]} Kf6 {[%emt 00:00:02] [%clk 00:02:48]} 24. c4 {[%emt
00:00:04] [%clk 00:01:09]} Nf4+ {[%emt 00:00:05] [%clk 00:02:44]} 25. Ke3 {[%emt
00:00:02] [%clk 00:01:09]} e5 {[%emt 00:00:07] [%clk 00:02:39]} 26. dxe5+ {[%emt
00:00:03] [%clk 00:01:07]} Kxe5 {[%emt 00:00:01] [%clk 00:02:40]} 27. Rb1 {[%emt
00:00:29] [%clk 00:00:40]} Rd4 {[%emt 00:00:04] [%clk 00:02:38]} 28. Rbd1 {[%emt
00:00:11] [%clk 00:00:32]} Rad8 {[%emt 00:00:03] [%clk 00:02:36]} 29. Rxd4
{[%emt 00:00:03] [%clk 00:00:31]} Rxd4 {[%emt 00:00:02] [%clk 00:02:37]} 30. Bb1
{[%emt 00:00:01] [%clk 00:00:32]} c5 {[%emt 00:00:03] [%clk 00:02:36]} 31. Bc2
{[%emt 00:00:01] [%clk 00:00:33]} b6 {[%emt 00:00:02] [%clk 00:02:37]} 32. Bb1
{[%clk 00:00:34]} Ne6 {[%emt 00:00:04] [%clk 00:02:34]} 33. Bc2 {[%emt 00:00:04]
[%clk 00:00:32]} Rh4 {[%emt 00:00:02] [%clk 00:02:34]} 0-1

[Site "Europe Echecs"]

[Event "Championnat d'Europe de Blitz"]
[Date "2024.12.09"]
[White "Navara, David"]
[Black "Ghimpu, Samuel-Timotei"]
[WhiteElo "2665"]
[BlackElo "2475"]
[Round "2.2"]
[Result "1/2-1/2"]
[TimeControl "180+2"]

1. d4 {[%clk 00:03:03]} Nf6 {[%emt 00:00:03] [%clk 00:03:03]} 2. c4 {[%clk
00:03:04]} e6 {[%clk 00:03:03]} 3. Nc3 {[%emt 00:00:02] [%clk 00:03:05]} d5
{[%clk 00:03:04]} 4. cxd5 {[%emt 00:00:02] [%clk 00:03:06]} Nxd5 {[%emt
00:00:01] [%clk 00:03:04]} 5. e3 {[%emt 00:00:02] [%clk 00:03:07]} c5 {[%emt
00:00:01] [%clk 00:03:04]} 6. Bd3 {[%emt 00:00:02] [%clk 00:03:07]} cxd4 {[%emt
00:00:38] [%clk 00:02:28]} 7. exd4 {[%emt 00:00:01] [%clk 00:03:08]} Nxc3 {[%emt
00:00:02] [%clk 00:02:29]} 8. bxc3 {[%emt 00:00:01] [%clk 00:03:08]} Qc7 {[%emt
00:00:02] [%clk 00:02:29]} 9. Bd2 {[%emt 00:00:11] [%clk 00:02:59]} b6 {[%emt
00:00:06] [%clk 00:02:26]} 10. Qg4 {[%emt 00:00:14] [%clk 00:02:47]} Nd7 {[%emt
00:00:15] [%clk 00:02:13]} 11. Nf3 {[%emt 00:00:26] [%clk 00:02:24]} Bb7 {[%emt
00:00:05] [%clk 00:02:09]} 12. O-O {[%emt 00:00:18] [%clk 00:02:08]} h5 {[%emt
00:00:21] [%clk 00:01:50]} 13. Qh3 {[%emt 00:00:12] [%clk 00:01:58]} Be7 {[%emt
00:00:30] [%clk 00:01:23]} 14. Rfe1 {[%emt 00:00:26] [%clk 00:01:34]} O-O-O
{[%emt 00:00:10] [%clk 00:01:14]} 15. Ng5 {[%emt 00:00:29] [%clk 00:01:07]} Bxg5
{[%emt 00:00:41] [%clk 00:00:35]} 16. Bxg5 {[%emt 00:00:01] [%clk 00:01:08]}
Rde8 {[%emt 00:00:09]} 17. a4 {[%clk 00:01:01]} Kb8 {[%emt 00:00:09] [%clk
00:00:29]} 18. a5 {[%emt 00:00:04] [%clk 00:00:59]} e5 {[%emt 00:00:14] [%clk
00:00:18]} 19. axb6 {[%emt 00:00:07] [%clk 00:00:54]} axb6 {[%emt 00:00:04]
[%clk 00:00:16]} 20. Bf5 {[%emt 00:00:19] [%clk 00:00:37]} Nf6 {[%emt 00:00:10]
[%clk 00:00:08]} 21. Qh4 {[%emt 00:00:20] [%clk 00:00:19]} Nd5 {[%emt 00:00:03]
[%clk 00:00:06]} 22. dxe5 {[%emt 00:00:04] [%clk 00:00:17]} Rxe5 {[%emt
00:00:04] [%clk 00:00:05]} 23. Rxe5 {[%emt 00:00:05] [%clk 00:00:13]} Qxe5
{[%emt 00:00:01] [%clk 00:00:06]} 24. Qg3 {[%emt 00:00:10] [%clk 00:00:05]} Qxg3
{[%emt 00:00:04] [%clk 00:00:04]} 25. hxg3 {[%emt 00:00:01] [%clk 00:00:06]} g6
{[%emt 00:00:03] [%clk 00:00:04]} 26. Bd7 {[%emt 00:00:02] [%clk 00:00:06]} f6
{[%emt 00:00:02] [%clk 00:00:04]} 27. Bd2 {[%emt 00:00:01] [%clk 00:00:06]} Rd8
{[%emt 00:00:02] [%clk 00:00:05]} 28. Bb5 {[%emt 00:00:02] [%clk 00:00:06]} Nc7
{[%emt 00:00:01] [%clk 00:00:05]} 29. Bf4 {[%clk 00:00:07]} g5 {[%emt 00:00:02]
[%clk 00:00:06]} 30. Bxc7+ {[%emt 00:00:01] [%clk 00:00:07]} Kxc7 {[%emt
00:00:01] [%clk 00:00:07]} 31. f3 {[%clk 00:00:08]} Rd2 {[%emt 00:00:03] [%clk
00:00:06]} 32. Re1 {[%emt 00:00:02] [%clk 00:00:08]} g4 {[%emt 00:00:03] [%clk
00:00:06]} 33. Re7+ {[%clk 00:00:09]} Kc8 {[%emt 00:00:01] [%clk 00:00:07]} 34.
Re8+ {[%emt 00:00:06] [%clk 00:00:06]} Kc7 {[%clk 00:00:08]} 35. Re7+ {[%emt
00:00:02] [%clk 00:00:07]} Kc8 {[%clk 00:00:10]} 36. Rf7 {[%emt 00:00:02] [%clk
00:00:06]} gxf3 {[%emt 00:00:03] [%clk 00:00:08]} 37. gxf3 {[%emt 00:00:01]
[%clk 00:00:07]} Bxf3 {[%emt 00:00:05] [%clk 00:00:05]} 38. Rxf6 {[%emt
00:00:02] [%clk 00:00:08]} Bb7 {[%emt 00:00:03] [%clk 00:00:04]} 39. Kf1 {[%emt
00:00:04] [%clk 00:00:05]} Rc2 {[%emt 00:00:03] [%clk 00:00:03]} 40. Rf8+ {[%emt
00:00:02] [%clk 00:00:05]} Kc7 {[%emt 00:00:02] [%clk 00:00:05]} 41. Rf7+ {[%clk
00:00:06]} Kc8 {[%emt 00:00:01] [%clk 00:00:06]} 42. c4 {[%emt 00:00:02] [%clk
00:00:06]} Rc3 {[%emt 00:00:03] [%clk 00:00:05]} 43. Kf2 {[%emt 00:00:01] [%clk
00:00:07]} Rc2+ {[%emt 00:00:03] [%clk 00:00:04]} 44. Ke3 {[%emt 00:00:02] [%clk
00:00:06]} Rc3+ {[%emt 00:00:01] [%clk 00:00:05]} 45. Kd4 {[%clk 00:00:07]} Rxg3
{[%emt 00:00:03] [%clk 00:00:05]} 46. Bd7+ {[%emt 00:00:01] [%clk 00:00:08]} Kb8
{[%emt 00:00:01] [%clk 00:00:05]} 47. Ke5 {[%emt 00:00:02] [%clk 00:00:08]} Re3+
{[%emt 00:00:02] [%clk 00:00:05]} 48. Kd6 {[%emt 00:00:03] [%clk 00:00:07]} Rd3+
{[%clk 00:00:06]} 49. Ke5 {[%emt 00:00:02] [%clk 00:00:08]} h4 {[%emt 00:00:01]
[%clk 00:00:07]} 50. Rh7 {[%emt 00:00:02] [%clk 00:00:07]} Re3+ {[%emt 00:00:04]
[%clk 00:00:05]} 51. Kd6 {[%emt 00:00:03] [%clk 00:00:06]} Rd3+ {[%emt 00:00:03]
[%clk 00:00:05]} 52. Ke5 {[%emt 00:00:01] [%clk 00:00:07]} Re3+ {[%emt 00:00:03]
[%clk 00:00:04]} 53. Kd4 {[%emt 00:00:01] [%clk 00:00:07]} Re4+ {[%emt 00:00:02]
[%clk 00:00:05]} 54. Kc3 {[%clk 00:00:08]} Rf4 {[%emt 00:00:02] [%clk 00:00:05]}
55. Kb4 {[%emt 00:00:04] [%clk 00:00:07]} Ba6 {[%emt 00:00:02] [%clk 00:00:05]}
56. Be6 {[%emt 00:00:01] [%clk 00:00:07]} Re4 {[%emt 00:00:03] [%clk 00:00:04]}
57. Bd5 {[%emt 00:00:04] [%clk 00:00:06]} Rf4 {[%emt 00:00:01] [%clk 00:00:05]}
58. Rh6 {[%emt 00:00:02] [%clk 00:00:06]} Kc7 {[%emt 00:00:02] [%clk 00:00:04]}
59. Rc6+ {[%emt 00:00:01] [%clk 00:00:07]} Kd7 {[%emt 00:00:04] [%clk 00:00:04]}
60. Rxb6 {[%clk 00:00:08]} Bxc4 {[%emt 00:00:02] [%clk 00:00:04]} 61. Bxc4
{[%emt 00:00:02] [%clk 00:00:08]} Ke7 {[%clk 00:00:05]} 62. Rh6 {[%emt 00:00:03]
[%clk 00:00:08]} Rg4 {[%emt 00:00:03] [%clk 00:00:03]} 63. Kc5 {[%emt 00:00:02]
[%clk 00:00:08]} Rg5+ {[%emt 00:00:01] [%clk 00:00:04]} 64. Bd5 {[%emt 00:00:01]
[%clk 00:00:09]} Rg4 {[%clk 00:00:06]} 65. Re6+ {[%emt 00:00:04] [%clk
00:00:07]} Kf8 {[%emt 00:00:02] [%clk 00:00:05]} 66. Kd6 {[%emt 00:00:03] [%clk
00:00:06]} Kg7 {[%emt 00:00:02] [%clk 00:00:06]} 67. Be4 {[%emt 00:00:04] [%clk
00:00:04]} h3 {[%emt 00:00:02] [%clk 00:00:06]} 68. Re7+ {[%emt 00:00:01] [%clk
00:00:04]} Kf6 {[%emt 00:00:03] [%clk 00:00:05]} 69. Re6 {[%emt 00:00:01] [%clk
00:00:05]} Kg5 {[%emt 00:00:02] [%clk 00:00:05]} 70. Re8 {[%emt 00:00:03] [%clk
00:00:05]} Kf4 {[%emt 00:00:03] [%clk 00:00:04]} 71. Kd5 {[%emt 00:00:01] [%clk
00:00:05]} Rh4 {[%emt 00:00:03] [%clk 00:00:04]} 72. Rf8+ {[%emt 00:00:01] [%clk
00:00:05]} Ke3 {[%emt 00:00:02] [%clk 00:00:04]} 73. Rf3+ {[%emt 00:00:02] [%clk
00:00:06]} Ke2 {[%clk 00:00:05]} 74. Ra3 {[%emt 00:00:02] [%clk 00:00:06]} h2
{[%emt 00:00:01] [%clk 00:00:06]} 75. Bh1 {[%emt 00:00:02] [%clk 00:00:07]} Kf2
{[%emt 00:00:01] [%clk 00:00:06]} 76. Ke5 {[%emt 00:00:04] [%clk 00:00:05]} Kg1
{[%emt 00:00:05] [%clk 00:00:03]} 77. Ra1+ {[%emt 00:00:01] [%clk 00:00:06]} Kf2
{[%clk 00:00:05]} 78. Kf5 {[%emt 00:00:02] [%clk 00:00:07]} Rh8 {[%emt 00:00:02]
[%clk 00:00:04]} 79. Be4 {[%emt 00:00:05] [%clk 00:00:04]} Rf8+ {[%emt 00:00:03]
[%clk 00:00:04]} 80. Kg4 {[%emt 00:00:01] [%clk 00:00:05]} Rg8+ {[%emt 00:00:01]
[%clk 00:00:05]} 81. Kf4 {[%emt 00:00:01] [%clk 00:00:06]} Rf8+ {[%emt 00:00:02]
[%clk 00:00:05]} 82. Bf5 {[%emt 00:00:01] [%clk 00:00:06]} Rxf5+ {[%emt
00:00:03] [%clk 00:00:05]} 83. Kxf5 {[%emt 00:00:01] [%clk 00:00:07]} Kg2 {[%emt
00:00:01] [%clk 00:00:06]} 84. Kg4 {[%emt 00:00:01] [%clk 00:00:08]} h1=Q {[%emt
00:00:04] [%clk 00:00:04]} 85. Ra2+ {[%emt 00:00:01] [%clk 00:00:08]} Kg1 {[%emt
00:00:01] [%clk 00:00:04]} 86. Ra1+ {[%emt 00:00:01] [%clk 00:00:10]} Kg2 {[%clk
00:00:05]} 87. Rxh1 {[%emt 00:00:02] [%clk 00:00:11]} Kxh1 {[%emt 00:00:01]
[%clk 00:00:03]} 1/2-1/2

[Site "Europe Echecs"]

[Event "Championnat d'Europe de Blitz"]
[Date "2024.12.09"]
[White "Tweedie, Steven"]
[Black "Fedoseev, Vladimir"]
[WhiteElo "2172"]
[BlackElo "2709"]
[Round "2.3"]
[Result "0-1"]
[TimeControl "180+2"]

1. e4 {[%emt 00:00:01] [%clk 00:03:03]} c5 {[%emt 00:00:06] [%clk 00:02:59]} 2.
Nc3 {[%emt 00:00:01] [%clk 00:03:03]} Nc6 {[%emt 00:00:04] [%clk 00:02:57]} 3.
g3 {[%clk 00:03:04]} g6 {[%emt 00:00:02] [%clk 00:02:57]} 4. Bg2 {[%emt
00:00:01] [%clk 00:03:05]} Bg7 {[%clk 00:02:58]} 5. d3 {[%emt 00:00:01] [%clk
00:03:06]} Rb8 {[%emt 00:00:01] [%clk 00:02:59]} 6. Be3 {[%emt 00:00:02] [%clk
00:03:06]} d6 {[%emt 00:00:31] [%clk 00:02:30]} 7. Qd2 {[%emt 00:00:04] [%clk
00:03:04]} b5 {[%emt 00:00:06] [%clk 00:02:26]} 8. f4 {[%emt 00:00:05] [%clk
00:03:01]} b4 {[%emt 00:00:05] [%clk 00:02:24]} 9. Nd1 {[%emt 00:00:01] [%clk
00:03:02]} Bd7 {[%emt 00:00:25] [%clk 00:02:01]} 10. Nf3 {[%emt 00:00:03] [%clk
00:03:00]} Nf6 {[%emt 00:00:08] [%clk 00:01:56]} 11. h3 {[%emt 00:00:02] [%clk
00:02:59]} O-O {[%emt 00:00:05] [%clk 00:01:53]} 12. O-O {[%emt 00:00:03] [%clk
00:02:58]} c4 {[%emt 00:00:10] [%clk 00:01:45]} 13. g4 {[%emt 00:00:07] [%clk
00:02:53]} Qa5 {[%emt 00:00:06] [%clk 00:01:42]} 14. Nf2 {[%emt 00:00:36] [%clk
00:02:18]} Ne8 {[%emt 00:00:07] [%clk 00:01:37]} 15. d4 {[%emt 00:00:11] [%clk
00:02:10]} c3 {[%emt 00:00:01] [%clk 00:01:37]} 16. bxc3 {[%emt 00:00:11] [%clk
00:02:01]} bxc3 {[%clk 00:01:38]} 17. Qc1 {[%emt 00:00:25] [%clk 00:01:38]} Nc7
{[%emt 00:00:09] [%clk 00:01:31]} 18. f5 {[%emt 00:00:16] [%clk 00:01:23]} Nb5
{[%emt 00:00:09] [%clk 00:01:24]} 19. Rd1 {[%emt 00:00:22] [%clk 00:01:04]} Qa3
{[%emt 00:00:01] [%clk 00:01:25]} 20. Bf1 {[%emt 00:00:19] [%clk 00:00:47]} Qxc1
{[%emt 00:00:01] [%clk 00:01:26]} 21. Raxc1 {[%clk 00:00:48]} Nb4 {[%emt
00:00:05] [%clk 00:01:24]} 22. Bc4 {[%emt 00:00:18] [%clk 00:00:32]} Na3 {[%emt
00:00:05] [%clk 00:01:21]} 23. Bb3 {[%emt 00:00:02] [%clk 00:00:33]} a5 {[%emt
00:00:02] [%clk 00:01:20]} 24. Nd3 {[%emt 00:00:23] [%clk 00:00:12]} a4 {[%emt
00:00:01] [%clk 00:01:21]} 25. Nxb4 {[%emt 00:00:01] [%clk 00:00:13]} axb3
{[%emt 00:00:06] [%clk 00:01:18]} 26. cxb3 {[%emt 00:00:02] [%clk 00:00:13]}
Rxb4 {[%emt 00:00:02] [%clk 00:01:18]} 27. Rxc3 {[%emt 00:00:01] [%clk
00:00:14]} Rb7 {[%emt 00:00:01] [%clk 00:01:18]} 28. fxg6 {[%emt 00:00:14] [%clk
00:00:00]} 0-1

[Site "Europe Echecs"]